bitfinex/quotes_ETHUSD_20220105
["timestamp","ask_amount","ask_price","bid_price","bid_amount"]
[1641348186106,0.382,3799.1,3799.0,0.3]
[1641348186310,0.382,3799.1,3798.8,0.00341054]
[1641348186707,0.382,3799.1,3798.3,1.37612961]
[1641348186907,0.65835,3798.8,3798.4,0.00568423]
[1641348187107,0.65835,3798.8,3798.7,0.65836]
[1641348187507,0.65835,3798.8,3798.7,0.66233896]
[1641348187709,0.65835,3798.8,3798.7,0.96233896]
[1641348187911,0.65835,3798.8,3798.7,1.62075226]
[1641348189108,0.66863398,3798.8,3798.7,1.62075226]
[1641348189309,0.66863398,3798.8,3798.7,1.62076226]
[1641348195101,0.69942999,3798.8,3798.7,1.62076226]
[1641348198848,0.65099228,3798.8,3798.7,1.62076226]
[1641348200450,0.68178828,3798.8,3798.7,1.62076226]
[1641348200851,0.68178828,3798.8,3798.7,0.30397896]
[1641348202810,0.68178828,3798.8,3798.7,0.00397896]
[1641348205346,0.68178828,3798.8,3798.7,1.89987268]
[1641348205549,0.68178828,3798.8,3798.7,1.8919214]
[1641348205747,0.04107998,3798.8,3798.7,1.8919214]
[1641348207754,0.04107998,3798.8,3798.7,5.4919214]
[1641348207755,7.998e-05,3798.8,3798.7,5.4919214]
[1641348208353,7.998e-05,3798.8,3798.7,20.8719214]
[1641348208994,7.998e-05,3798.8,3798.7,17.2719214]
[1641348209193,7.998e-05,3798.8,3798.7,1.8919214]
[1641348209394,7.998e-05,3798.8,3798.7,2.5501661]
[1641348210494,7.998e-05,3798.8,3798.7,2.8501661]
[1641348210894,7.998e-05,3798.8,3798.7,3.1501661]
[1641348211099,7.998e-05,3798.8,3798.7,18.5301661]
[1641348211898,7.998e-05,3798.8,3798.7,18.2301661]
[1641348213757,7.998e-05,3798.8,3798.7,18.5301661]
[1641348214356,7.998e-05,3798.8,3798.7,18.7072661]
[1641348214761,0.65815,3800.0,3799.4,0.6581292]
[1641348214957,4.2987,3800.4,3799.6,1.14233708]
[1641348215165,0.0073895,3800.0,3799.7,2.04052534]
[1641348215361,0.0073895,3800.0,3799.7,2.34052534]
[1641348215558,0.382,3800.4,3799.7,2.34052534]
[1641348215559,0.00682108,3799.9,3799.7,2.34052534]
[1641348215758,0.00682108,3799.9,3799.2,1.2077]
[1641348215759,0.00682108,3799.9,3799.3,2.18196931]
[1641348215999,0.65813,3800.1,3800.0,1.9743626]
[1641348216202,0.65813,3800.1,3800.0,1.6162417]
[1641348219607,0.00909477,3800.3,3800.0,7.95830651]
[1641348219856,3.8385,3801.6,3800.1,0.65801]
[1641348220052,3.8385,3801.6,3800.1,3.06382485]
[1641348220250,0.00170527,3800.6,3800.1,2.40581485]
[1641348220450,0.00170527,3800.6,3800.1,0.30113685]
[1641348220649,0.00113685,3800.5,3800.1,0.00113685]
[1641348220849,0.65920685,3800.5,3800.1,0.00113685]
[1641348221053,0.65807,3800.5,3800.1,0.00113685]
[1641348221252,0.65807,3800.5,3800.3,0.6580524]
[1641348221652,0.65807,3800.5,3800.3,0.9580524]
[1641348221954,0.65807,3800.5,3800.3,0.3]
[1641348222252,0.65807,3800.5,3800.1,1.31729675]
[1641348222253,0.65807,3800.5,3800.2,0.3]
[1641348224797,0.65807,3800.5,3800.3,0.65809]
[1641348224998,0.65807,3800.5,3800.3,0.6581094]
[1641348226605,0.65807,3800.5,3800.3,1.3161794]
[1641348226805,1.31613,3801.0,3800.3,1.3161794]
[1641348226806,0.65806,3800.7,3800.3,1.3161794]
[1641348227005,0.03078224,3800.5,3800.4,1.3160624]
[1641348227444,0.03191909,3800.5,3800.4,1.6160624]
[1641348229445,0.03191909,3800.5,3800.4,0.3]
[1641348229645,0.03191909,3800.5,3800.3,0.9580245]
[1641348230245,0.69000909,3800.5,3800.3,0.3]
[1641348230648,0.69000909,3800.5,3800.1,1.61724685]
[1641348231314,0.69000909,3800.5,3800.1,0.00113685]
[1641348231315,1.8052358,3800.3,3800.1,0.00113685]
[1641348231507,2.16484291,3800.2,3800.1,0.00113685]
[1641348231707,1.5290158,3800.3,3799.7,0.00341054]
[1641348231907,1.5290158,3800.3,3799.1,0.0583]
[1641348231908,2.05964614,3800.2,3799.3,0.00568423]
[1641348232106,1.5290158,3800.3,3799.2,0.00625266]
[1641348232505,1.5290158,3800.3,3799.7,0.3]
[1641348232506,1.31648,3800.1,3799.7,0.3]
[1641348232908,1.31648,3800.1,3799.8,0.00284212]
[1641348233507,1.31648,3800.1,3799.8,0.66104082]
[1641348233707,0.65822,3800.0,3799.8,0.66104082]
[1641348233912,0.65822,3800.0,3799.9,0.00227369]
[1641348235554,0.65822,3800.0,3799.7,0.00341054]
[1641348236154,0.65822,3800.0,3799.7,0.30341054]
[1641348236556,0.65822,3800.0,3799.8,0.00284212]
[1641348240805,0.60978229,3800.0,3799.8,0.00284212]
[1641348241511,0.60978229,3800.0,3799.8,0.30284212]
[1641348241808,0.60978229,3800.0,3799.1,2.6911787]
[1641348241809,2.4421879,3799.9,3799.1,2.6911787]
[1641348242011,2.4421879,3799.9,3799.1,0.0583]
[1641348242260,0.65835,3799.5,3799.2,0.00625266]
[1641348242856,0.65835,3799.5,3798.9,0.00795793]
[1641348243657,0.65835,3799.5,3799.0,0.65833]
[1641348243855,0.65835,3799.5,3799.1,0.3]
[1641348244054,0.65835,3799.5,3799.1,0.30682108]
[1641348245455,0.68914136,3799.5,3799.1,0.30682108]
[1641348245855,0.65831,3799.3,3799.1,0.30682108]
[1641348246903,0.03079136,3799.5,3799.1,0.30682108]
[1641348247102,0.03079136,3799.5,3799.3,0.3]
[1641348247501,0.03079136,3799.5,3799.4,0.00511581]
[1641348249104,0.68907136,3799.5,3799.4,0.00511581]
[1641348251057,0.68907136,3799.5,3799.1,0.00682108]
[1641348251252,0.65832,3799.3,3799.1,0.00682108]
[1641348251854,0.65832,3799.3,3799.2,0.6583042]
[1641348252054,0.65832,3799.3,3799.2,0.9583042]
[1641348254196,0.65832,3799.3,3799.2,0.3]
[1641348254598,0.65832,3799.3,3799.1,0.00682108]
[1641348254997,0.65832,3799.3,3798.8,0.00852635]
[1641348255600,0.65832,3799.3,3799.0,0.6583308]
[1641348255799,0.65832,3799.3,3799.0,0.9583308]
[1641348255999,0.65832,3799.3,3799.1,0.00682108]
[1641348257853,0.68905136,3799.5,3799.1,0.00682108]
[1641348258053,0.68905136,3799.5,3799.2,0.6582668]
[1641348258255,0.68905136,3799.5,3799.3,0.3]
[1641348258455,0.68905136,3799.5,3799.3,0.30568423]
[1641348258656,0.68905136,3799.5,3799.4,0.00511581]
[1641348260998,0.69933341,3799.5,3799.4,0.00511581]
[1641348261803,0.6508957,3799.5,3799.4,0.00511581]
[1641348263003,0.6508957,3799.5,3799.4,0.66340621]
[1641348263407,0.6508957,3799.5,3799.4,0.96340621]
[1641348263807,0.01028205,3799.5,3799.4,0.96340621]
[1641348265655,2.99696005,3799.5,3799.4,0.00511581]
[1641348265856,7.76796005,3799.5,3799.4,0.00511581]
[1641348266054,8.76796005,3799.5,3799.4,0.00511581]
[1641348266254,8.76796005,3799.5,3798.1,0.01623632]
[1641348266255,7.48838205,3799.5,3798.2,0.01193689]
[1641348266455,1.10582942,3798.9,3798.5,0.01023162]
[1641348266654,0.382,3798.8,3798.2,0.01193689]
[1641348267254,0.382,3798.8,3798.2,0.67043079]
[1641348267457,0.382,3798.8,3798.2,0.01193689]
[1641348267654,0.382,3798.8,3798.3,0.01136847]
[1641348267855,0.382,3798.8,3798.1,0.01250531]
[1641348268496,0.382,3798.8,3798.1,1.11572869]
[1641348268700,0.382,3798.8,3798.2,0.65838]
[1641348268896,0.382,3798.8,3798.4,0.6584617]
[1641348269098,0.65838,3798.7,3798.5,0.3]
[1641348269300,0.65838,3798.7,3798.5,0.31023162]
[1641348269602,0.65838,3798.7,3798.6,0.0096632]
[1641348280853,2.71407705,3798.7,3798.6,0.0096632]
[1641348281260,4.39607705,3798.7,3798.2,0.01193689]
[1641348281458,0.65857,3798.5,3798.2,0.01193689]
[1641348281657,2.0772049,3798.4,3798.2,0.01193689]
[1641348282559,3.4840965,3798.6,3798.2,0.01193689]
[1641348282757,1.31709,3798.4,3798.2,0.01193689]
[1641348282960,1.27592881,3798.4,3798.2,0.01193689]
[1641348283159,3.31145988,3798.4,3798.2,0.01193689]
[1641348284800,1.27592881,3798.4,3798.2,0.01193689]
[1641348286002,3.34802115,3798.3,3798.1,0.01250531]
[1641348286205,2.6957904,3798.2,3798.1,0.01250531]
[1641348286505,0.6586,3798.2,3798.1,0.01250531]
[1641348286705,0.66888543,3798.2,3798.1,0.01250531]
[1641348286905,2.71671963,3798.2,3798.1,0.01250531]
[1641348287107,4.52661963,3798.2,3798.1,0.01250531]
[1641348287366,4.52661963,3798.2,3796.8,0.65861]
[1641348287367,0.65872,3797.3,3796.5,0.0565]
[1641348287567,0.65872,3797.3,3796.4,1.3175017]
[1641348287568,2.18842548,3797.2,3796.4,1.3175017]
[1641348287868,2.18842548,3797.2,3796.6,0.00852636]
[1641348287869,0.3,3797.2,3796.6,0.00852636]
[1641348288065,0.382,3797.1,3796.6,0.00852636]
[1641348288264,0.1799,3797.3,3796.7,0.6587629]
[1641348288464,0.1799,3797.3,3796.8,2.00522618]
[1641348288665,0.382,3797.6,3796.9,1.3172407]
[1641348288865,0.382,3797.6,3796.9,1.62406179]
[1641348289066,0.382,3797.6,3797.0,0.00625266]
[1641348289364,0.382,3797.6,3797.0,1.91123654]
[1641348289567,0.382,3797.6,3797.2,0.6586291]
[1641348289568,0.65862,3797.5,3797.2,0.6586291]
[1641348289765,0.65862,3797.5,3797.3,2.19015344]
[1641348289968,0.0572,3798.3,3797.4,1.90273217]
[1641348290165,0.0572,3798.3,3797.4,1.90671114]
[1641348290368,0.0572,3798.3,3797.5,0.00341055]
[1641348290767,1.0,3798.4,3797.5,0.00341055]
[1641348291004,0.66880543,3798.2,3797.7,1.3169928]
[1641348291211,0.01028543,3798.2,3797.8,1.96502443]
[1641348291406,0.01028543,3798.2,3797.8,1.96672971]
[1641348291605,0.01028543,3798.2,3797.9,0.00113685]
[1641348292208,0.01028543,3798.2,3798.0,1.3169527]
[1641348292407,0.01028543,3798.2,3798.0,3.21331053]
[1641348292608,0.01028543,3798.2,3798.1,0.3]
[1641348299710,0.01028543,3798.2,3797.9,0.00113685]
[1641348299911,0.65856,3798.1,3797.9,0.00113685]
[1641348300109,0.65856,3798.1,3797.7,0.67478914]
[1641348300110,0.65856,3798.1,3797.8,0.30170528]
[1641348300512,0.65856,3798.1,3797.9,0.00113685]
[1641348301115,0.65856,3798.1,3797.9,0.95965575]
[1641348301816,0.65856,3798.1,3797.9,0.30113685]
[1641348303860,0.65856,3798.1,3797.9,0.95965415]
[1641348304260,0.65856,3798.1,3797.9,0.30113685]
[1641348309305,0.01070395,3798.0,3797.9,0.30113685]
[1641348311756,0.01070395,3798.0,3797.9,0.00113685]
[1641348312056,0.01070395,3798.0,3797.8,0.00170528]
[1641348312256,0.65867,3797.9,3797.8,0.00170528]
[1641348313360,3.6075987,3797.9,3797.8,0.00170528]
[1641348313605,3.6075987,3797.9,3797.3,0.00454739]
[1641348313606,4.6075987,3797.9,3797.3,0.00454739]
[1641348313811,4.6075987,3797.9,3796.9,0.00682109]
[1641348314008,0.65876,3797.4,3796.9,0.00682109]
[1641348314207,1.04076,3797.4,3796.9,0.00682109]
[1641348314407,1.34076,3797.4,3796.9,0.30682109]
[1641348314607,0.682,3797.4,3796.9,0.30682109]
[1641348314806,1.39268338,3797.4,3797.0,0.00625266]
[1641348315008,0.39268338,3797.4,3797.0,0.00625266]
[1641348315407,0.65873,3797.2,3797.0,0.00625266]
[1641348315607,0.01068338,3797.4,3797.0,0.00625266]
[1641348316009,0.01068338,3797.4,3797.0,1.32346906]
[1641348316410,0.01068338,3797.4,3797.1,0.00568424]
[1641348316813,0.01068338,3797.4,3797.1,0.66435254]
[1641348317255,0.01068338,3797.4,3797.2,0.00511582]
[1641348318059,0.01068338,3797.4,3797.2,0.30511582]
[1641348318459,0.01068338,3797.4,3797.3,0.00454739]
[1641348320066,0.01068338,3797.4,3797.3,4.23211841]
[1641348320266,0.01068338,3797.4,3797.3,4.62618653]
[1641348320461,0.01068338,3797.4,3797.3,9.17618653]
[1641348320662,8.338e-05,3797.4,3797.3,25.85618653]
[1641348320859,3.41179627,3799.3,3798.2,0.65837]
[1641348321110,3.41179627,3799.3,3798.7,0.65835]
[1641348321310,3.41179627,3799.3,3798.6,0.193]
[1641348321311,0.00625265,3799.2,3798.6,0.193]
[1641348321507,0.00625265,3799.2,3798.8,1.31654]
[1641348321706,0.00568423,3799.1,3798.9,1.50923045]
[1641348321910,0.00568423,3799.1,3798.8,2.27483]
[1641348322108,0.00511581,3799.0,3798.8,0.3]
[1641348322307,0.00511581,3799.0,3798.7,0.95821]
[1641348322506,0.5,3799.5,3798.7,0.95821]
[1641348322507,0.00454738,3798.9,3798.7,0.95821]
[1641348322708,0.00454738,3798.9,3798.7,1.6165717]
[1641348322907,0.5,3799.5,3798.7,1.6165717]
[1641348322908,0.00397896,3798.8,3798.7,1.6165717]
[1641348332357,0.00397896,3798.8,3798.7,1.3165717]
[1641348332756,0.00397896,3798.8,3798.7,3.30333006]
[1641348333558,0.00397896,3798.8,3798.7,4.26158046]
[1641348334362,0.00397896,3798.8,3798.7,7.31158046]
[1641348334963,0.00397896,3798.8,3798.7,4.26158046]
[1641348336409,0.00397896,3798.8,3798.7,2.26158046]
[1641348337010,0.00397896,3798.8,3798.7,3.57815216]
[1641348337611,0.00397896,3798.8,3798.7,3.87815216]
[1641348338010,0.5,3799.5,3798.7,3.87815216]
[1641348338011,0.5,3799.5,3798.8,4.68768145]
[1641348338212,0.5,3799.5,3799.2,0.65809]
[1641348338412,0.5,3799.5,3799.3,2.3912345]
[1641348338413,0.00341054,3799.4,3799.3,2.3912345]
[1641348338613,0.00341054,3799.4,3799.3,3.90581481]
[1641348338817,0.00341054,3799.4,3799.3,5.22431319]
[1641348339215,0.00341054,3799.4,3799.3,6.54049649]
[1641348340558,0.01369283,3799.4,3799.3,6.54049649]
[1641348340959,0.01369283,3799.4,3799.3,6.47619649]
[1641348341565,0.5,3799.5,3799.3,6.47619649]
[1641348341763,0.5,3799.5,3799.4,6.73593982]
[1641348342363,0.5,3799.5,3799.4,2.43593982]
[1641348343163,0.5,3799.5,3799.4,4.83593982]
[1641348344609,0.5,3799.5,3799.4,2.43593982]
[1641348345314,0.5,3799.5,3799.4,4.38593982]
[1641348345509,0.5,3799.5,3799.4,2.43593982]
[1641348347357,0.5,3799.5,3799.4,17.81593982]
[1641348348360,0.5,3799.5,3799.4,2.43593982]
[1641348349761,0.5,3799.5,3799.4,2.73593982]
[1641348350362,0.5,3799.5,3799.4,18.11593982]
[1641348351206,0.5,3799.5,3799.4,17.81593982]
[1641348351405,0.5,3799.5,3799.4,18.11593982]
[1641348351705,0.5,3799.5,3799.4,2.73593982]
[1641348353406,0.5,3799.5,3799.4,18.11593982]
[1641348355157,0.5,3799.5,3799.4,2.73593982]
[1641348355559,0.5,3799.5,3799.4,18.11593982]
[1641348355959,3.6323,3800.9,3799.4,18.11593982]
[1641348355960,3.6323,3800.9,3799.4,19.49793982]
[1641348356162,3.6323,3800.9,3800.1,0.658]
[1641348356363,0.00738951,3800.7,3800.2,2.01516288]
[1641348356863,0.00682108,3800.6,3800.2,2.01516288]
[1641348357263,0.6580107,3801.1,3800.2,2.01516288]
[1641348357264,0.00625266,3800.5,3800.2,2.01516288]
[1641348357663,0.00568423,3800.4,3800.3,1.97401]
[1641348359418,0.00568423,3800.4,3800.3,1.31601]
[1641348359818,0.00568423,3800.4,3800.2,1.31601]
[1641348360018,0.00649709,3800.4,3800.2,1.31601]
[1641348360219,0.00511581,3800.3,3800.2,1.31601]
[1641348366423,0.01539565,3800.3,3800.2,1.31601]
[1641348369026,0.01539565,3800.3,3799.9,1.31612]
[1641348369426,0.00454739,3800.2,3799.9,1.31612]
[1641348369861,0.00397896,3800.1,3799.9,1.31612]
[1641348370264,0.00341054,3800.0,3799.9,1.31612]
[1641348370465,0.00341054,3800.0,3799.9,1.97423]
[1641348370664,0.00341054,3800.0,3799.9,6.91592987]
[1641348370865,0.00341054,3800.0,3799.9,3.86592987]
[1641348371266,0.00341054,3800.0,3799.9,1.97423]
[1641348371470,0.00341054,3800.0,3799.9,0.65811]
[1641348371867,0.00341054,3800.0,3799.9,2.53572634]
[1641348371868,0.01369119,3800.0,3799.9,2.53572634]
[1641348374417,0.01369119,3800.0,3799.9,17.91572634]
[1641348374618,0.01369119,3800.0,3799.9,18.21572634]
[1641348375218,1.2895,3801.1,3799.9,18.21572634]
[1641348375219,1.2895,3801.1,3800.4,0.65795]
[1641348375418,1.3159448,3801.4,3800.5,1.9060017]
[1641348375619,0.00568424,3801.0,3800.7,0.65796]
[1641348376018,0.00511581,3800.9,3800.7,0.65796]
[1641348376419,0.00454739,3800.8,3800.7,0.65796]
[1641348376622,0.00454739,3800.8,3800.6,1.97391]
[1641348377019,0.00397897,3800.7,3800.6,1.97391]
[1641348381007,0.00482645,3800.7,3800.6,1.97391]
[1641348382613,0.00482645,3800.7,3800.6,1.31592]
[1641348400566,0.00482645,3800.7,3799.9,0.01624027]
[1641348400767,0.65818,3800.6,3800.0,1.31635]
[1641348400967,0.66159054,3800.6,3800.0,1.31635]
[1641348401165,0.00284212,3800.5,3800.0,1.31635]
[1641348401366,1.4821755,3800.2,3800.0,1.31635]
[1641348404113,1.3163547,3800.3,3800.0,1.31635]
[1641348404512,0.00113685,3800.2,3800.0,1.31635]
[1641348412714,0.00113685,3800.2,3799.9,0.65817]
[1641348412916,0.65825,3800.1,3799.9,0.65817]
[1641348414416,1.95825,3800.1,3799.9,0.65817]
[1641348414617,0.65825,3800.1,3799.9,0.65817]
[1641348419811,1.65825,3800.1,3799.9,0.65817]
[1641348420210,0.65825,3800.1,3799.9,0.65817]
[1641348421214,1.65825,3800.1,3799.9,0.65817]
[1641348421414,0.65825,3800.1,3799.9,0.65817]
[1641348421614,1.65825,3800.1,3799.9,0.65817]
[1641348421914,0.65825,3800.1,3799.9,0.65817]
[1641348436121,0.6582465,3800.2,3800.0,4.43304225]
[1641348436317,0.6582465,3800.2,3800.1,2.00637862]
[1641348438267,0.66852658,3800.2,3800.1,2.00637862]
[1641348441113,0.66852658,3800.2,3799.9,2.51233151]
[1641348441114,0.66852658,3800.2,3799.9,1.31629]
[1641348441315,0.66852658,3800.2,3799.9,0.65817]
[1641348442814,1.32665658,3800.2,3799.9,0.65817]
[1641348447872,1.62665658,3800.2,3799.9,0.65817]
[1641348449421,1.32665658,3800.2,3799.8,1.3163]
[1641348449618,0.65816,3800.0,3799.8,1.3163]
[1641348449818,1.974474,3800.0,3799.8,0.65813]
[1641348450020,0.3,3799.9,3799.2,1.37632]
[1641348450220,2.2746352,3799.9,3799.2,0.06]
[1641348450420,2.6332166,3799.8,3799.5,1.31645]
[1641348450619,3.0152166,3799.8,3799.3,0.00397896]
[1641348450819,0.65836,3799.6,3798.6,1.2223]
[1641348451018,0.65836,3799.6,3798.2,3.9638]
[1641348451019,0.6583691,3799.2,3798.2,3.9638]
[1641348451223,1.34772837,3799.2,3798.7,0.0073895]
[1641348451423,1.9751071,3799.0,3798.7,0.0073895]
[1641348451622,2.30601747,3799.0,3798.8,1.31672]
[1641348452024,2.30601747,3799.0,3798.2,1.1253]
[1641348452264,1.3167462,3798.7,3798.2,1.1253]
[1641348452465,1.3167462,3798.7,3798.3,0.00341054]
[1641348452866,1.3167462,3798.7,3798.2,0.00397896]
[1641348453066,1.3167462,3798.7,3798.2,0.66236896]
[1641348453467,1.3167462,3798.7,3798.4,0.65838]
[1641348453869,1.9751193,3798.7,3798.5,0.00227369]
[1641348454475,2.2751193,3798.7,3798.5,0.00227369]
[1641348454677,4.29599275,3798.7,3798.5,0.00227369]
[1641348454874,2.2751193,3798.7,3798.5,0.00227369]
[1641348455673,0.6585,3798.5,3798.2,0.00397896]
[1641348455874,1.3169652,3798.5,3798.2,0.00397896]
[1641348456323,1.3169652,3798.5,3797.9,1.31695]
[1641348456324,0.6584652,3798.5,3798.0,0.00511581]
[1641348456522,2.6339204,3798.6,3798.0,0.00511581]
[1641348457524,2.6339204,3798.6,3798.3,0.65847]
[1641348457525,0.65845,3798.5,3798.3,0.65847]
[1641348457925,0.65845,3798.5,3798.4,0.00284211]
[1641348458526,1.3169304,3798.6,3798.4,0.00284211]
[1641348458725,0.6584482,3798.5,3798.4,0.00284211]
[1641348460364,0.03145229,3798.9,3798.4,0.00284211]
[1641348460565,3.1208,3799.2,3798.4,0.00284211]
[1641348460766,3.1208,3799.2,3798.4,1.97789211]
[1641348460767,0.6583461,3798.7,3798.4,1.97789211]
[1641348461168,0.6583461,3798.7,3798.5,0.00227369]
[1641348461768,1.9750573,3798.7,3798.5,0.00227369]
[1641348462973,2.2750573,3798.7,3798.5,0.00227369]
[1641348464016,0.01028427,3798.6,3798.5,0.00227369]
[1641348465316,0.01028427,3798.6,3798.1,0.65846]
[1641348465520,0.65849,3798.4,3798.2,0.00397896]
[1641348465721,0.95849,3798.4,3798.2,0.00397896]
[1641348466121,2.97634936,3798.4,3798.2,0.00397896]
[1641348466322,2.06852534,3798.3,3797.6,2.4845]
[1641348466522,0.95849,3798.4,3797.6,2.4845]
[1641348466523,1.9756815,3798.1,3797.6,2.4845]
[1641348466723,0.65855,3797.9,3797.7,0.00284212]
[1641348467123,0.95855,3797.9,3797.7,0.00284212]
[1641348468878,0.9585378,3797.9,3797.7,0.00284212]
[1641348469077,0.6585378,3797.9,3797.7,0.00284212]
[1641348469278,0.01028643,3797.8,3797.7,0.00284212]
[1641348475070,0.31028643,3797.8,3797.7,0.00284212]
[1641348479732,0.01028643,3797.8,3797.7,0.00284212]
[1641348482684,0.31028643,3797.8,3797.7,0.00284212]
[1641348485186,0.16028643,3797.8,3797.7,0.00284212]
[1641348485388,0.01028643,3797.8,3797.7,0.00284212]
[1641348487323,0.31028643,3797.8,3797.7,0.00284212]
[1641348496734,0.31028643,3797.8,3797.6,1.317]
[1641348509832,0.01028643,3797.8,3797.7,4.37257358]
[1641348510233,0.01028643,3797.8,3797.7,4.40073121]
[1641348510633,0.01028643,3797.8,3797.7,2.6]
[1641348511536,0.01028643,3797.8,3797.6,1.699]
[1641348518527,0.01028643,3797.8,3797.6,3.49646028]
[1641348519970,0.01028643,3797.8,3797.6,1.699]
[1641348521378,0.00768643,3797.8,3797.6,1.69599]
[1641348521776,0.00768643,3797.8,3797.6,1.68308]
[1641348524432,0.54651423,3797.9,3797.6,2.34155]
[1641348525232,0.54651423,3797.9,3797.6,2.25277]
[1641348526732,1.20501423,3797.9,3797.6,2.25277]
[1641348527279,1.20501423,3797.9,3797.6,2.24859]
[1641348527478,1.32833925,3797.8,3797.6,2.24859]
[1641348529888,1.32833925,3797.8,3797.6,1.30108]
[1641348530385,1.98688925,3797.8,3797.6,1.30108]
[1641348535578,1.99717579,3797.8,3797.6,1.30108]
[1641348540829,0.66883654,3797.8,3797.6,1.30108]
[1641348548230,0.96883654,3797.8,3797.6,1.30108]
[1641348548532,2.0229493,3797.7,3797.6,1.30108]
[1641348548730,2.0229493,3797.7,3797.3,0.65864]
[1641348548931,1.21308654,3797.8,3797.6,0.00341054]
[1641348549330,0.6586148,3797.6,3797.3,0.00511581]
[1641348549531,0.9586148,3797.6,3797.3,0.00511581]
[1641348550784,0.9586148,3797.6,3797.5,0.65863]
[1641348551183,0.9586148,3797.6,3797.5,0.66260897]
[1641348561535,0.96911599,3797.6,3797.5,0.66260897]
[1641348561935,0.66911599,3797.6,3797.5,0.66260897]
[1641348562135,0.96911599,3797.6,3797.5,0.66260897]
[1641348564342,0.66911599,3797.6,3797.5,0.66260897]
[1641348569224,0.96911599,3797.6,3797.5,0.66260897]
[1641348575483,0.66911599,3797.6,3797.5,0.66260897]
[1641348576832,0.96911599,3797.6,3797.5,0.66260897]
[1641348581284,0.66911599,3797.6,3797.5,0.65863]
[1641348581484,0.96911599,3797.6,3797.5,0.65863]
[1641348583388,0.66911599,3797.6,3797.5,0.65863]
[1641348584424,0.96911599,3797.6,3797.5,0.65863]
[1641348598086,2.98331896,3797.6,3797.5,0.65863]
[1641348598290,0.96911599,3797.6,3797.5,0.65863]
[1641348598732,2.9927335,3797.6,3797.5,0.65863]
[1641348598932,3.9927335,3797.6,3797.5,0.65863]
[1641348599137,2.9927335,3797.6,3797.3,0.65867]
[1641348599338,0.65867,3797.5,3797.3,0.65867]
[1641348599537,1.65867,3797.5,3797.4,0.00454739]
[1641348599738,2.89913539,3797.5,3797.4,0.00454739]
[1641348599940,2.89913539,3797.5,3796.8,0.00795793]
[1641348600140,1.3173884,3797.4,3796.8,0.00795793]
[1641348600338,0.3,3797.3,3796.8,0.00795793]
[1641348600738,2.34543201,3797.3,3797.1,0.65871]
[1641348600938,3.33745685,3797.2,3797.1,0.65871]
[1641348601740,2.6348133,3797.2,3797.1,0.65871]
[1641348602140,2.9348133,3797.2,3797.1,0.65871]
[1641348609037,3.9348133,3797.2,3797.1,0.65871]
[1641348609882,3.6348133,3797.2,3797.1,0.65871]
[1641348611087,5.6608475,3797.2,3797.1,0.65871]
[1641348611286,3.6348133,3797.2,3797.1,0.65871]
[1641348612688,2.31741,3797.2,3797.1,0.65871]
[1641348612890,4.33430183,3797.2,3797.1,0.65871]
[1641348613547,4.33430183,3797.2,3796.9,0.65875]
[1641348613743,1.0,3797.1,3796.9,0.65875]
[1641348613944,1.0,3797.1,3797.0,0.00682108]
[1641348614945,2.9761528,3797.2,3797.0,0.00682108]
[1641348615145,1.0,3797.1,3797.0,0.00682108]
[1641348615545,2.9761528,3797.2,3797.0,0.00682108]
[1641348615748,1.9761528,3797.2,3797.0,0.00682108]
[1641348615946,1.0,3797.1,3797.0,0.00682108]
[1641348616147,2.9761528,3797.2,3797.0,0.00682108]
[1641348616747,0.6587,3797.1,3797.0,0.00682108]
[1641348620099,1.6587,3797.1,3797.0,0.00682108]
[1641348620297,0.6587,3797.1,3797.0,0.00682108]
[1641348620496,1.6587,3797.1,3797.0,0.00682108]
[1641348620899,1.9587,3797.1,3797.0,0.00682108]
[1641348624882,1.6587,3797.1,3797.0,0.00682108]
[1641348625685,0.6587,3797.1,3797.0,0.00682108]
[1641348625886,1.99179013,3797.2,3797.0,0.00682108]
[1641348625887,0.01563733,3797.2,3797.0,0.00682108]
[1641348628089,0.01563733,3797.2,3796.9,1.31738]
[1641348628090,0.01563733,3797.2,3796.9,1.68620108]
[1641348628536,2.74963504,3798.3,3797.1,4.6]
[1641348628741,0.65847,3798.3,3797.8,0.65847]
[1641348628937,0.6658595,3798.3,3797.8,0.65847]
[1641348629338,1.74127511,3798.3,3797.8,0.65847]
[1641348629541,0.6585208,3798.2,3797.8,0.65847]
[1641348629738,0.65855,3798.1,3797.8,0.65847]
[1641348629939,0.00625266,3798.1,3797.9,1.31694]
[1641348630138,1.9756208,3798.2,3797.9,1.31694]
[1641348630139,0.00568423,3798.0,3797.9,1.31694]
[1641348632382,0.00568423,3798.0,3797.6,1.31711]
[1641348632578,1.32293423,3798.0,3797.6,1.31711]
[1641348632782,0.00511581,3797.9,3797.6,1.31711]
[1641348633285,0.00454738,3797.8,3797.6,1.31711]
[1641348633687,0.00397896,3797.7,3797.6,1.31711]
[1641348647045,0.01426572,3797.7,3797.6,1.31711]
[1641348653742,0.67289572,3797.7,3797.5,0.65864]
[1641348654144,0.00341054,3797.6,3797.5,0.65864]
[1641348657294,9.73e-05,3797.7,3797.6,4.6]
[1641348657496,9.73e-05,3797.7,3797.6,7.26250807]
[1641348657694,9.73e-05,3797.7,3797.6,8.45030807]
[1641348658097,9.73e-05,3797.7,3797.6,8.50820807]
[1641348659037,9.73e-05,3797.7,3797.6,6.4424]
[1641348660046,9.73e-05,3797.7,3797.6,8.41302229]
[1641348660441,9.73e-05,3797.7,3797.6,8.79502229]
[1641348660843,9.73e-05,3797.7,3797.6,2.2244]
[1641348661041,9.73e-05,3797.7,3797.6,1.6277]
[1641348662043,9.73e-05,3797.7,3797.6,1.9277]
[1641348662692,9.73e-05,3797.7,3797.6,3.7777]
[1641348663088,9.73e-05,3797.7,3797.6,1.9277]
[1641348665896,9.73e-05,3797.7,3797.6,0.7399]
[1641348666142,9.73e-05,3797.7,3797.6,0.682]
[1641348668344,9.73e-05,3797.7,3797.6,0.382]
[1641348668544,9.73e-05,3797.7,3797.6,0.682]
[1641348668745,9.73e-05,3797.7,3797.6,0.382]
[1641348671196,9.73e-05,3797.7,3797.5,1.975439]
[1641348672799,0.01028688,3797.7,3797.5,1.975439]
[1641348677385,0.01028688,3797.7,3797.5,1.31704]
[1641348678790,0.92928688,3797.7,3796.8,3.0863]
[1641348678991,0.92928688,3797.7,3797.2,0.65868]
[1641348679391,0.92928688,3797.7,3797.1,0.00284212]
[1641348679593,2.22928688,3797.7,3797.1,0.00284212]
[1641348679790,2.22928688,3797.7,3796.9,0.00397897]
[1641348679991,2.22928688,3797.7,3796.8,0.00454739]